Cogmind - Beta 16 @@@ ROGUE MODE // 2025.11.18 @ 20:06:28 Player: Mozco Result: Destroyed by YI-UF0 with YI-UF0's Doublenader Performance ------------- Evolutions (0) 0 Regions Visited (2) 400 Robots Destroyed (14) 70 Value Destroyed (348) 348 Prototype IDs (0) 0 Alien Tech Used (0) 0 Bonus (0) 0 TOTAL SCORE: 818 Bonus ------- None Cogmind --------- Core Integrity 0/250 Matter 300/300 Energy 44/100 System Corruption 0% Temperature Cool (44) Movement Walking (260) Ox2 Location -10/Mines Parts ------- > --- POWER (1) -------- (None) > --- PROPULSION (2) --- Aluminum Leg > --- UTILITY (2) ------ Improved Heat Sink Large Storage Unit > --- WEAPON (2) ------- Beam Cannon Beam Cannon > --- INVENTORY (15) --- Aluminum Leg Aluminum Leg Aluminum Leg Aluminum Leg Aluminum Leg Heat Sink Medium Storage Unit Light Armor Plating Light Armor Plating Light Armor Plating Beam Cannon Beam Cannon Beam Cannon Beam Cannon Beam Cannon Peak State ------------ > --- POWER ------------ Light Nuclear Core > --- PROPULSION ------- Aluminum Leg Aluminum Leg > --- UTILITY ---------- Improved Heat Sink Large Storage Unit > --- WEAPON ----------- Medium Laser Medium Laser > --- INVENTORY -------- Aluminum Leg Aluminum Leg Aluminum Leg Aluminum Leg Aluminum Leg Aluminum Leg Heat Sink Medium Storage Unit Light Armor Plating Light Armor Plating Light Armor Plating Particle Gun [Rating: 12] Favorites ----------- Power Light Nuclear Core Engine Light Ion Engine Power Core Light Nuclear Core Propulsion Aluminum Leg Leg Aluminum Leg Utility Improved Heat Sink Device Improved Heat Sink Storage Large Storage Unit Processor Targeting Computer Weapon Medium Laser Energy Gun Medium Laser Energy Cannon Beam Cannon Ballistic Gun Assault Rifle Build | -11 -10 -10 ------- Run | Yrd Mat Min Slots Evolved . | . . . Power . | . . . Propulsion . | . . . Utility . | . . . Weapon . | . . . Parts Attached 23 | 6 17 . Power 3 | 2 1 . Engine 2 | 2 . . Core 1 | . 1 . Reactor . | . . . Propulsion 9 | 2 7 . Treads . | . . . Leg 9 | 2 7 . Wheel . | . . . Hover . | . . . Flight . | . . . Utility 5 | . 5 . Device 2 | . 2 . Storage 2 | . 2 . Processor 1 | . 1 . Hackware . | . . . Protection . | . . . Artifact . | . . . Weapon 6 | 2 4 . Energy Gun 3 | 1 2 . Energy Cannon 2 | . 2 . Ballistic Gun 1 | 1 . . Ballistic Cannon . | . . . Launcher . | . . . Special Weapon . | . . . Impact Weapon . | . . . Slashing Weapon . | . . . Piercing Weapon . | . . . Special Melee Weapon . | . . . Unidentified Prototypes . | . . . Parts Lost 5 | . 3 2 Power 3 | . 2 1 Propulsion 2 | . 1 1 Utility . | . . . Weapon . | . . . Highest Loss Streak 2 | . 2 2 To Critical Strikes . | . . . Average Backups 8 | 1 8 15 Power . | . . . Propulsion 3 | . 3 5 Utility 3 | . 3 5 Weapon 2 | . 1 5 Tool/Special . | . . . Unused Backups 11 | . 1 10 Power . | . . . Propulsion 2 | . . 2 Utility 3 | . . 3 Weapon 6 | . 1 5 Tool/Special . | . . . Average Slot Usage (%) 93 | . 93 96 Engine 6 | . 7 . Core 5 | . 4 12 Leg 27 | . 27 26 Device 9 | . 9 14 Storage 9 | . 9 14 Processor 5 | . 5 . Energy Gun 16 | . 17 . Energy Cannon 8 | . 6 28 Ballistic Gun 3 | . 3 . Peak Build Rating 12 | 5 12 12 Average Rating 8 | 4 8 11 On Entrance 5 | . 5 12 Avg Prop Armor Cover (%) . | . . . Naked Turns . | . . . Heaviest Build 32 | 8 32 32 Greatest Support 20 | 20 20 20 Greatest Overweight (x) 2 | . 2 1 Average Overweight (x) . | . . 1 Largest Inventory Capacity 15 | 5 15 15 Average Capacity 10 | 5 10 15 Most Carried 15 | 2 15 15 Average Carried 8 | 1 8 15 Final Capacity 15 | 5 15 15 Final Carried 15 | 2 15 15 Class Distribution -------------------- 67% | Mutant 32% | Scavenger-Mutant Dominant Class ---------------- Mutant | -10/Materials Scavenger-Mutant | -10/Mines Resources | -11 -10 -10 ----------- Run | Yrd Mat Min Matter Collected 497 | 233 264 . Remotely . | . . . Salvage Created 511 | . 511 . Parts 27 | . 27 . Haulers Intercepted 2 | . 2 . Recyclers Shooed 1 | . 1 . Parts Field Recycled . | . . . Retrieved Matter . | . . . Parts Self-Destructed . | . . . Prevented . | . . . Parts Restored . | . . . Kills | -11 -10 -10 ------- Run | Yrd Mat Min Combat Hostiles Destroyed 11 | . 11 . Guns 11 | . 11 . Classes Destroyed 4 | . 4 . Hauler 2 | . 2 . Watcher 1 | . 1 . Swarmer 3 | . 3 . Grunt 8 | . 8 . Best Kill Streak 3 | . 3 . Combat Bots Only 3 | . 3 . Max Kills in Single Turn 1 | . 1 . Gunslinging . | . . . Exploded . | . . . Melee . | . . . Uniques/NPCs Destroyed . | . . . Combat | -11 -10 -10 -------- Run | Yrd Mat Min Hostile Shots Fired 97 | . 81 16 Missed 29 | . 23 6 Hits 68 | . 58 10 Projectile 68 | . 58 10 AOE 13 | . . 13 Critical Strikes 1 | . 1 . Damage Taken 1182 | . 774 408 Core 259 | . 137 122 Absorbed by Shields . | . . . Core Remaining (%) 100 | 100 . . Volleys Fired 54 | . 48 6 Largest 2 | . 2 2 Hottest 120 | . 100 120 Shots Fired 107 | . 95 12 Gun 95 | . 95 . Cannon 12 | . . 12 Launcher . | . . . Special . | . . . Kinetic 15 | . 15 . Thermal 92 | . 80 12 Explosive . | . . . Electromagnetic . | . . . Robot Hit Streak 10 | . 10 5 Robot Miss Streak 5 | . 5 3 Penetration Max . | . . . Secondary Targets . | . . . Shots Hit Robots 74 | . 67 7 Core Hits 28 | . 27 1 Critical Kills . | . . . Critical Parts Destroyed . | . . . Critical Strikes 1 | . 1 . Burn 1 | . 1 . Melee Attacks . | . . . Impact . | . . . Slashing . | . . . Piercing . | . . . Sneak Attacks . | . . . Combat Hostiles . | . . . Follow-up Attacks . | . . . Damage Inflicted 957 | . 834 123 Guns 834 | . 834 . Cannons 123 | . . 123 Explosions . | . . . Melee . | . . . Ramming . | . . . Kinetic 148 | . 148 . Thermal 809 | . 686 123 Explosive . | . . . Electromagnetic . | . . . Impact . | . . . Slashing . | . . . Piercing . | . . . Highest Corruption . | . . . Average Corruption . | . . . Corruption Purged . | . . . Corruption Blocked . | . . . Overload Shots . | . . . Overflow Damage . | . . . Projectiles . | . . . Explosions . | . . . Melee . | . . . Knockbacks . | . . . Impact . | . . . Kinetic . | . . . Secondary . | . . . Self-Inflicted Damage . | . . . Shots . | . . . Rammed . | . . . Targets Rammed 1 | . 1 . Kicked 1 | . 1 . Crushed . | . . . Highest Temperature 231 | . 231 44 Average Temperature 52 | . 56 33 Received Heat Transfer 357 | . 357 . Effects 2 | . 2 . Interference 2 | . 2 . Siege Activations . | . . . Martial Activations . | . . . Shielding Activations . | . . . Robots Disrupted . | . . . Combat Hostiles . | . . . Robots Corrupted . | . . . Combat Hostiles . | . . . Parts Fried . | . . . Impact Corruptions . | . . . Robots Melted . | . . . Combat Hostiles . | . . . Parts Melted 5 | . 5 . Heat Transferred 2188 | . 1929 259 Parts Sabotaged . | . . . Parts Stolen . | . . . Parts Stripped . | . . . Power Chain Reactions . | . . . Alert | -11 -10 -10 ------- Run | Yrd Mat Min Maximum Alert Level . | . . . Low Security (%) 100 | 100 100 100 Level 1 . | . . . Level 2 . | . . . Level 3 . | . . . Level 4 . | . . . Level 5 . | . . . High Security . | . . . Max Security . | . . . Peak Influence 72 | . 72 13 Initial 13 | . . 13 Average 18 | . 21 4 Influence Increases 417 | . 417 . Destroy 0b10 Robot/C 220 | . 220 . Destroy 0b10 Robot/NC 15 | . 15 . Destroy Leader 56 | . 56 . Successful Hack 50 | . 50 . Select Force Hacks 60 | . 60 . Destroy Structure 1 | . 1 . Lose Combat Pursuer 15 | . 15 . Influence Decreases 417 | . 381 36 Entered New Map 23 | . . 23 Time Decay 364 | . 351 13 Lost Part 30 | . 30 . Squads Dispatched 5 | . 5 . Investigation 4 | . 4 . Extermination . | . . . Reinforcement 1 | . 1 . Assault . | . . . Garrison . | . . . Intercept . | . . . Searches Triggered . | . . . Construction Impeded . | . . . Haulers Reinforced . | . . . Active Scanning Responses . | . . . Cargo Convoy Interrupts . | . . . Stealth | -11 -10 -10 --------- Run | Yrd Mat Min Distress Signals 2 | . 2 . Communications Jammed . | . . . Distress Signals . | . . . Times Spotted 28 | . 27 1 Peak Tracking Total 5 | . 5 1 Tactical Retreats 1 | . 1 . Traps | -11 -10 -10 ------- Run | Yrd Mat Min Traps Triggered 3 | . 3 . Indirectly . | . . . Trap Hack Attempts . | . . . Triggered . | . . . Disarmed . | . . . Reprogrammed . | . . . Reused . | . . . Traps Extracted . | . . . Installed . | . . . Triggered . | . . . Machines | -11 -10 -10 ---------- Run | Yrd Mat Min Machines Disabled . | . . . Max in Single Turn . | . . . Machines Repaired . | . . . Machines Dismantled . | . . . Machines Sabotaged . | . . . Overloaded Fab Kills . | . . . Hacking | -11 -10 -10 --------- Run | Yrd Mat Min Machines Accessed 8 | . 8 . Terminals 6 | . 6 . Fabricators . | . . . Repair Stations . | . . . Recycling Units 2 | . 2 . Scanalyzers . | . . . Garrison Access . | . . . Total Hacks 33 | . 33 . Successful 16 | . 16 . Failed 17 | . 17 . Catastrophic 3 | . 3 . Database Lockouts . | . . . Manual 31 | . 31 . Terminals 30 | . 30 . Fabricators . | . . . Repair Stations . | . . . Recycling Units 3 | . 3 . Scanalyzers . | . . . Garrison Access . | . . . Terminal Hacks 10 | . 10 . Part Schematic 5 | . 5 . Robot Analysis 4 | . 4 . Zone Layout 1 | . 1 . Fabricator Hacks . | . . . Repair Station Hacks . | . . . Recycling Unit Hacks . | . . . Scanalyzer . | . . . Garrison Access Hacks . | . . . Unauthorized Hacks 6 | . 6 . Terminals 4 | . 4 . Botnet 4 | . 4 . Fabricators . | . . . Repair Stations . | . . . Recycling Units 2 | . 2 . Tunnel 2 | . 2 . Scanalyzers . | . . . Garrison Access . | . . . Data Cores Recovered . | . . . Used . | . . . Hacking Detections 7 | . 7 . Full Trace Events 4 | . 4 . Feedback Events . | . . . Feedback Blocked . | . . . Robot Schematics Acquired . | . . . Robots Built . | . . . Authchips . | . . . Time . | . . . Total Robot Build Rating . | . . . Part Schematics Acquired 4 | . 4 . Parts Built . | . . . Authchips . | . . . Time . | . . . Total Part Build Rating . | . . . Part Studies Acquired . | . . . Parts Repaired . | . . . Time . | . . . Parts Recycled . | . . . Recycled Matter . | . . . Retrieved Matter . | . . . Retrieved Components . | . . . Parts Scanalyzed . | . . . Part Schematics Acquired . | . . . Parts Damaged . | . . . Bothacking | -11 -10 -10 ------------ Run | Yrd Mat Min Used RIF Installer . | . . . Robots Hacked . | . . . Non-combat . | . . . Combat . | . . . Robot Hacks Applied . | . . . Relay Couplers Released . | . . . Fabnet Peak Effective % . | . . . Robots Rewired . | . . . Allies Hacked . | . . . Hacks Repelled . | . . . Allies | -11 -10 -10 -------- Run | Yrd Mat Min Total Allies 3 | . . 3 Largest Group 3 | . . 3 Highest-Rated Group 40 | . . 40 Highest-Rated Ally 16 | . . 16 Total Orders 1 | . . 1 STAY 1 | . . 1 Ally Attacks . | . . . Total Damage . | . . . Kills . | . . . Allies Corrupted . | . . . Allies Melted . | . . . Intel | -11 -10 -10 ------- Run | Yrd Mat Min Active Infowar (turns) . | . . . Robot Analysis Total 4 | . 4 . Derelict Logs Recovered . | . . . Drone Launches . | . . . Drone Recoveries . | . . . Exploration | -11 -10 -10 ------------- Run | Yrd Mat Min Turns Passed 1152 | 77 999 76 Spaces Moved 624 | 58 535 31 Core 2 | 2 . . Treads . | . . . Legs 622 | 56 535 31 Wheels . | . . . Hover . | . . . Flight . | . . . Fastest Speed 50 | 50 120 190 Average Speed 145 | 117 146 190 Slowest Speed 260 | 120 260 190 Overloaded Moves . | . . . Propulsion Burnouts . | . . . Robots Hopped . | . . . Potential Cave-ins . | . . . Cave-ins Triggered . | . . . Exploration Rate (%) 33 | 3 83 15 Regions Visited 2 Branch Regions 1 Pre-discovered Areas 2 | . 2 . Known Exits Taken . | . . . Unknown Exits Taken 2 | 1 1 . Scrap Searched . | . . . Spaces Dug . | . . . Terrain Destroyed . | . . . Melee . | . . . Projectile . | . . . AOE . | . . . Terrain Rammed . | . . . Walls Destroyed . | . . . Machines Disabled . | . . . Actions | -11 -10 -10 --------- Run | Yrd Mat Min Total 755 | 64 653 38 Wait 27 | . 26 1 Move 622 | 57 534 31 Hop . | . . . Pick Up 16 | 1 15 . Fast Attach 11 | 5 6 . Attach 4 | . 4 . Detach . | . . . Swap 11 | 1 10 . Drop 9 | . 9 . Fire 54 | . 48 6 Melee . | . . . Ram . | . . . Kick 1 | . 1 . Crush . | . . . Escape Stasis . | . . . Rewire . | . . . Trap . | . . . Miscellaneous . | . . . Route ------- -11/Scrapyard -10/Materials (discovered 5 exits: [*Mat x2] / [*Min x2] / [*Sub]) -10/Mines History --------- Turn | Location | Event 42 | -11/Scrapyard | Discovered new exit (range 15) 78 | -11/Scrapyard | Entered Materials 308 | -10/Materials | Build established: Mutant 401 | -10/Materials | Discovered new exit (range 4) 442 | -10/Materials | Discovered new exit (range 16) 543 | -10/Materials | Discovered new exit (range 14) 547 | -10/Materials | Discovered new exit (range 8) 821 | -10/Materials | Discovered new exit (range 16) 1018 | -10/Materials | Core integrity fell below 50% 1067 | -10/Materials | Build established: Scavenger-Mutant 1077 | -10/Materials | Entered Mines 1087 | -10/Mines | Assisted by bots powering up and referring to "LRC-V3" 1153 | -10/Mines | Destroyed by YI-UF0 with YI-UF0's Doublenader Last Messages --------------- 01047_ Connecting with Terminal... 01047_ ALERT: Suspicious activity at Terminal M001. Dispatching Investigation squad. 01047_ Kicked K-01 Serf. 01052_ Acquired 6 matter. LOCATION=UNKNOWN GOAL=ESCAPE 01087_ Trooper 1a: "Hello LRC-V3. What is your command?" 01087_ Mercenary 1a: "Hello LRC-V3. What is your command?" 01087_ Trooper 1b: "Hello LRC-V3. What is your command?" 01130_ The unstable cave ceiling collapses. 01139_ YI-UF0: "BOOM TO YOU TOO!" 01139_ U-05 Engineer destroyed. 01141_ Lgt. Nuclear Core destroyed. 01142_ The unstable cave ceiling collapses. 01143_ Aluminum Leg destroyed. 01144_ The unstable cave ceiling collapses. 01149_ R-06 Scavenger collects Wheel. 01151_ The unstable cave ceiling collapses. 01152_ R-06 Scavenger collects Terrain Scanner. Map ----- +----------------------------------------------------+ | ?????????????????????????????????????????????????? | | ?????????????????????????????????????????????????? | | ?????????????????????????????????????????????????? | | ?????????????????????????????????????????????????? | | ?????????????????????????????????????????????????? | | ?????????????????????????????????????????????????? | | ?????????????????????????????????????????????????? | | ?????????????????????????????????????????????????? | | ?????????????????????????????????????????????????? | | ?????????????????????????????????????????????????? | | ??????????????????????? ??????????????????????? | | ????????????????????? ??????????????????????? | | ?????????????????? g ??????????????????????? | | ????????????????? ??????????????????????? | | ???????????????# ? * %r ??????????????????????? | | ???????????????? ??????????????????????? | | ????????????????? ???####????##?????????? | | ?????????????????? # ??## ##??? ??????????? | | ??????????????????? ?## ##? #??????????? | | ???????????????????# # ## #??????????? | | ???????????????????## # ##?????????? | | ??????????????????## # # ##????????? | | ??????????????????? # ##???????? | | ????????????????????# # ### #??? | | ????????????????????# # $ #?? | | ????????????????????# @ # #?? | | ????????????????????# # #?? | | ????????????????????# ## #?? | | ????????????????????## #g #?# #?? | | ?????????????????????## ## ## #??##### #??? | | ????????????????????####??### #????????? ##??? | | ?????????????????#### ##### ##?????????? #???? | | ?????????????????# #???????????????? | | ?????????????????# #???????????????? | | ?????????????????# ##???????????????? | | ?????????????????##### ########????????????????? | | ?????????????????????#####???????????????????????? | | ?????????????????????????????????????????????????? | | | | | | | | | | | | | | | | | | | | | | | | | +----------------------------------------------------+ Best States ------------- Heat Dissipation 39 Energy Generation 14 Energy Capacity 250 Matter Stores 300 Matter Capacity 300 Sight Range 16 Terrain Scan Density 10 Evasion (%) 55 Targeting Accuracy 5 Item Schematics ----------------- Hcp. Storage Unit | -10/Materials | Hacked Aluminum Leg | -10/Materials | Hacked Ion Engine | -10/Materials | Hacked Med. Laser | -10/Materials | Hacked Robot Schematics ------------------ None Fabricated ------------ Nothing Repaired ---------- Nothing Studied --------- None Alien Tech Used ----------------- None Achievements -------------- None Challenges ------------ None Game ------ Seed FactoryLatentMesh Manual? 0 Play Time 00:22:17 Cumulative 295.7 hours Start 2025.11.18 @ 18:37:20 End 2025.11.18 @ 20:06:28 Sessions 1 Manual Loads 0 Difficulty Rogue Special Mode None Game No. 310 Rogue 306 Adventurer 3 Explorer 1 Win Type - Total 2 Types 2/0/0/0/0/0/0/0/0/0 Lore% 79 Gallery% 76 Achievement% 62 Wizard Run 0 Options --------- Layout 0 ASCII 0 Keyboard 0 Movement Mouse Keybinds 0 Fullscreen 2 Font 18/SmallcapsGlow Map View 76x50 Zoom Use 0% Tactical HUD 1 Map Filters NONE Filters NONE Steam 1 RUN: 101a859d-59e7-4eea-9355-f113f1ec7e08